[Event "January 9 Late 2024"]
[Site "https://www.chess.com"]
[Date "2024.01.09"]
[Round "7"]
[White "Peczely, Sebastian Zsombor"]
[Black "Ozates, Tuna"]
[Result "1-0"]
[Board "94"]
[TimeControl "180+1"]
[WhiteFideId "750964"]
[BlackFideId "6354521"]
[WhiteElo "2484"]
[BlackElo "2653"]
[WhiteTeam "HUN"]
[BlackTeam "TUR"]
[WhiteClock "0:00:08"]
[BlackClock "0:00:05"]

1. e4 {[%clk 0:03:00]}  e5 {[%clk 0:02:59]} 2. Nf3 {[%clk 0:02:57]}  Nc6 {[%clk 0:02:59]} 3. d4 {[%clk 0:02:57]}  exd4 {[%clk 0:02:59]} 4. Nxd4 {[%clk 0:02:58]}  Nf6 {[%clk 0:02:59]} 5. Nxc6 {[%clk 0:02:57]}  bxc6 {[%clk 0:03:00]} 6. e5 {[%clk 0:02:58]}  Qe7 {[%clk 0:03:00]} 7. Qe2 {[%clk 0:02:58]}  Nd5 {[%clk 0:03:00]} 8. c4 {[%clk 0:02:59]}  Ba6 {[%clk 0:03:01]} 9. b3 {[%clk 0:02:59]}  Nb6 {[%clk 0:02:54]} 10. f4 {[%clk 0:02:49]}  g6 {[%clk 0:02:54]} 11. Qf2 {[%clk 0:02:39]}  Bg7 {[%clk 0:02:53]} 12. Be2 {[%clk 0:02:30]}  d6 {[%clk 0:02:48]} 13. O-O {[%clk 0:02:27]}  O-O {[%clk 0:02:47]} 14. Ba3 {[%clk 0:02:13]}  c5 {[%clk 0:02:46]} 15. Nd2 {[%clk 0:02:01]}  Bb7 {[%clk 0:02:45]} 16. Rae1 {[%clk 0:01:51]}  Rfe8 {[%clk 0:02:38]} 17. Bf3 {[%clk 0:01:24]}  Bxf3 {[%clk 0:02:37]} 18. Nxf3 {[%clk 0:01:25]}  Qd7 {[%clk 0:02:35]} 19. Kh1 {[%clk 0:01:22]}  a5 {[%clk 0:02:32]} 20. Ng5 {[%clk 0:01:13]}  a4 {[%clk 0:02:27]} 21. Bb2 {[%clk 0:01:03]}  axb3 {[%clk 0:02:27]} 22. axb3 {[%clk 0:01:03]}  Ra2 {[%clk 0:02:26]} 23. Re2 {[%clk 0:00:43]}  h6 {[%clk 0:02:13]} 24. Ne4 {[%clk 0:00:42]}  Qf5 {[%clk 0:01:56]} 25. Nc3 {[%clk 0:00:42]}  Raa8 {[%clk 0:01:47]} 26. Nb5 {[%clk 0:00:42]}  Qd7 {[%clk 0:01:43]} 27. exd6 {[%clk 0:00:31]}  cxd6 {[%clk 0:01:44]} 28. Bxg7 {[%clk 0:00:30]}  Kxg7 {[%clk 0:01:45]} 29. Rd2 {[%clk 0:00:25]}  Re6 {[%clk 0:01:36]} 30. Rfd1 {[%clk 0:00:16]}  Rd8 {[%clk 0:01:24]} 31. Qg3 {[%clk 0:00:16]}  d5 {[%clk 0:01:15]} 32. cxd5 {[%clk 0:00:16]}  Rf6 {[%clk 0:01:08]} 33. Nc3 {[%clk 0:00:14]}  Qf5 {[%clk 0:01:06]} 34. Qe3 {[%clk 0:00:06]}  c4 {[%clk 0:01:05]} 35. Ne4 {[%clk 0:00:05]}  Nxd5 {[%clk 0:01:01]} 36. Qd4 {[%clk 0:00:05]}  c3 {[%clk 0:00:15]} 37. Nxf6 {[%clk 0:00:05]}  Nxf6 {[%clk 0:00:13]} 38. Qxd8 {[%clk 0:00:05]}  cxd2 {[%clk 0:00:14]} 39. Qxd2 {[%clk 0:00:05]}  h5 {[%clk 0:00:14]} 40. h3 {[%clk 0:00:04]}  Ne4 {[%clk 0:00:14]} 41. Qd4+ {[%clk 0:00:03]}  Kh7 {[%clk 0:00:13]} 42. Kh2 {[%clk 0:00:03]}  Qxf4+ {[%clk 0:00:13]} 43. Kg1 {[%clk 0:00:03]}  Qf5 {[%clk 0:00:06]} 44. Rf1 {[%clk 0:00:04]}  Ng3 {[%clk 0:00:06]} 45. Rxf5 {[%clk 0:00:03]}  Ne2+ {[%clk 0:00:06]} 46. Kf2 {[%clk 0:00:03]}  Nxd4 {[%clk 0:00:07]} 47. Rxf7+ {[%clk 0:00:03]}  Kg8 {[%clk 0:00:08]} 48. Rb7 {[%clk 0:00:04]}  Kf8 {[%clk 0:00:09]} 49. b4 {[%clk 0:00:05]}  Ke8 {[%clk 0:00:09]} 50. b5 {[%clk 0:00:05]}  Kd8 {[%clk 0:00:10]} 51. Rg7 {[%clk 0:00:06]}  Nxb5 {[%clk 0:00:09]} 52. Rxg6 {[%clk 0:00:07]}  Ke7 {[%clk 0:00:10]} 53. Rg5 {[%clk 0:00:07]}  Nd4 {[%clk 0:00:11]} 54. Rxh5 {[%clk 0:00:07]}  Kf6 {[%clk 0:00:12]} 55. Rh4 {[%clk 0:00:08]}  Ne6 {[%clk 0:00:12]} 56. Re4 {[%clk 0:00:08]}  Ng5 {[%clk 0:00:12]} 57. Rg4 {[%clk 0:00:08]}  Ne6 {[%clk 0:00:12]} 58. Kf3 {[%clk 0:00:08]}  Kf5 {[%clk 0:00:12]} 59. Kg3 {[%clk 0:00:09]}  Nc7 {[%clk 0:00:11]} 60. Kh2 {[%clk 0:00:10]}  Nd5 {[%clk 0:00:11]} 61. Rg3 {[%clk 0:00:10]}  Kf6 {[%clk 0:00:11]} 62. h4 {[%clk 0:00:11]}  Ne7 {[%clk 0:00:11]} 63. Kh3 {[%clk 0:00:11]}  Kf7 {[%clk 0:00:11]} 64. Rg5 {[%clk 0:00:10]}  Kf6 {[%clk 0:00:12]} 65. g3 {[%clk 0:00:10]}  Nc8 {[%clk 0:00:11]} 66. g4 {[%clk 0:00:10]}  Nd6 {[%clk 0:00:11]} 67. Rd5 {[%clk 0:00:10]}  Ne4 {[%clk 0:00:11]} 68. h5 {[%clk 0:00:09]}  Kg7 {[%clk 0:00:10]} 69. Kh4 {[%clk 0:00:09]}  Kh7 {[%clk 0:00:09]} 70. g5 {[%clk 0:00:09]}  Nc3 {[%clk 0:00:07]} 71. Rd7+ {[%clk 0:00:09]}  Kg8 {[%clk 0:00:08]} 72. h6 {[%clk 0:00:09]}  Ne4 {[%clk 0:00:05]} 73. Kh5 {[%clk 0:00:08]} 1-0

[Event "January 9 Late 2024"]
[Site "https://www.chess.com"]
[Date "2024.01.09"]
[Round "7"]
[White "Novikov, Evgenij"]
[Black "Gubajdullin, Alexei"]
[Result "1-0"]
[Board "95"]
[TimeControl "180+1"]
[WhiteFideId "4125380"]
[BlackFideId "4141202"]
[WhiteElo "2483"]
[BlackElo "2628"]
[WhiteTeam "RUS"]
[BlackTeam "RUS"]
[WhiteClock "0:01:01"]
[BlackClock "0:00:04"]

1. d4 {[%clk 0:03:00]}  Nf6 {[%clk 0:02:59]} 2. c4 {[%clk 0:03:01]}  g6 {[%clk 0:02:58]} 3. Nc3 {[%clk 0:03:01]}  Bg7 {[%clk 0:02:58]} 4. e4 {[%clk 0:03:01]}  d6 {[%clk 0:02:58]} 5. Be2 {[%clk 0:03:00]}  O-O {[%clk 0:02:57]} 6. Nf3 {[%clk 0:03:01]}  c5 {[%clk 0:02:56]} 7. O-O {[%clk 0:03:00]}  cxd4 {[%clk 0:02:36]} 8. Nxd4 {[%clk 0:02:59]}  Nc6 {[%clk 0:02:36]} 9. Nxc6 {[%clk 0:03:00]}  bxc6 {[%clk 0:02:35]} 10. Rb1 {[%clk 0:02:58]}  a5 {[%clk 0:02:33]} 11. b3 {[%clk 0:02:57]}  Nd7 {[%clk 0:02:32]} 12. Bb2 {[%clk 0:02:54]}  Nc5 {[%clk 0:02:31]} 13. Qc2 {[%clk 0:02:53]}  f5 {[%clk 0:02:26]} 14. Rbd1 {[%clk 0:02:31]}  f4 {[%clk 0:01:55]} 15. Na4 {[%clk 0:02:13]}  Nxa4 {[%clk 0:01:47]} 16. Bxg7 {[%clk 0:02:12]}  Kxg7 {[%clk 0:01:46]} 17. bxa4 {[%clk 0:02:13]}  Qb6 {[%clk 0:01:17]} 18. c5 {[%clk 0:02:11]}  Qxc5 {[%clk 0:01:09]} 19. Qxc5 {[%clk 0:02:11]}  dxc5 {[%clk 0:01:09]} 20. Rc1 {[%clk 0:02:12]}  Ba6 {[%clk 0:00:39]} 21. Bxa6 {[%clk 0:02:02]}  Rxa6 {[%clk 0:00:39]} 22. Rxc5 {[%clk 0:01:57]}  Rd8 {[%clk 0:00:39]} 23. g3 {[%clk 0:01:49]}  Rd4 {[%clk 0:00:37]} 24. Re5 {[%clk 0:01:38]}  Kf6 {[%clk 0:00:31]} 25. gxf4 {[%clk 0:01:37]}  Rxa4 {[%clk 0:00:30]} 26. Rd1 {[%clk 0:01:34]}  Rxa2 {[%clk 0:00:26]} 27. Rd7 {[%clk 0:01:31]}  e6 {[%clk 0:00:19]} 28. Rd6 {[%clk 0:01:29]}  a4 {[%clk 0:00:17]} 29. Rdxe6+ {[%clk 0:01:26]}  Kg7 {[%clk 0:00:17]} 30. Re7+ {[%clk 0:01:27]}  Kh6 {[%clk 0:00:17]} 31. Rf7 {[%clk 0:01:23]}  Ra8 {[%clk 0:00:10]} 32. Ree7 {[%clk 0:01:14]}  Rh8 {[%clk 0:00:10]} 33. Rc7 {[%clk 0:01:14]}  Re2 {[%clk 0:00:08]} 34. e5 {[%clk 0:01:11]}  a3 {[%clk 0:00:07]} 35. Ra7 {[%clk 0:01:07]}  a2 {[%clk 0:00:06]} 36. Kg2 {[%clk 0:01:05]}  Kh5 {[%clk 0:00:05]} 37. Kf3 {[%clk 0:01:01]}  Rb2 {[%clk 0:00:04]} 38. Rxh7+ {[%clk 0:01:00]}  Rxh7 {[%clk 0:00:04]} 39. Rxh7# {[%clk 0:01:01]} 1-0

[Event "January 9 Late 2024"]
[Site "https://www.chess.com"]
[Date "2024.01.09"]
[Round "7"]
[White "Korchynskyi, Mykola"]
[Black "Li, Tedric"]
[Result "0-1"]
[Board "97"]
[TimeControl "180+1"]
[WhiteFideId "34138005"]
[BlackFideId "3242897"]
[WhiteElo "2610"]
[BlackElo "2468"]
[WhiteTeam "UKR"]
[BlackTeam "AUS"]
[WhiteClock "0:00:00"]
[BlackClock "0:00:39"]

1. d4 {[%clk 0:02:58]}  Nf6 {[%clk 0:02:59]} 2. c4 {[%clk 0:02:57]}  Nc6 {[%clk 0:02:59]} 3. Nc3 {[%clk 0:02:57]}  e5 {[%clk 0:02:59]} 4. e3 {[%clk 0:02:53]}  Bb4 {[%clk 0:02:57]} 5. Nf3 {[%clk 0:02:51]}  Bxc3+ {[%clk 0:02:53]} 6. bxc3 {[%clk 0:02:51]}  d6 {[%clk 0:02:53]} 7. Be2 {[%clk 0:02:50]}  O-O {[%clk 0:02:53]} 8. O-O {[%clk 0:02:49]}  Bg4 {[%clk 0:02:49]} 9. Ba3 {[%clk 0:02:46]}  Re8 {[%clk 0:02:44]} 10. Rb1 {[%clk 0:02:43]}  b6 {[%clk 0:02:44]} 11. Qc2 {[%clk 0:02:29]}  Qd7 {[%clk 0:02:33]} 12. Rbd1 {[%clk 0:02:21]}  Qf5 {[%clk 0:02:26]} 13. Qa4 {[%clk 0:02:04]}  Ne7 {[%clk 0:02:11]} 14. dxe5 {[%clk 0:01:59]}  dxe5 {[%clk 0:02:11]} 15. h3 {[%clk 0:01:44]}  Bh5 {[%clk 0:02:03]} 16. Bd3 {[%clk 0:00:52]}  e4 {[%clk 0:01:58]} 17. Nd4 {[%clk 0:00:52]}  Qg6 {[%clk 0:01:49]} 18. Be2 {[%clk 0:00:50]}  Bxe2 {[%clk 0:01:42]} 19. Nxe2 {[%clk 0:00:51]}  Nf5 {[%clk 0:01:43]} 20. Qc6 {[%clk 0:00:39]}  Nh4 {[%clk 0:01:34]} 21. Nf4 {[%clk 0:00:33]}  Qg5 {[%clk 0:01:35]} 22. Qxc7 {[%clk 0:00:20]}  Rac8 {[%clk 0:01:15]} 23. Qd6 {[%clk 0:00:14]}  Rxc4 {[%clk 0:01:11]} 24. Rd4 {[%clk 0:00:08]}  Nf3+ {[%clk 0:01:10]} 25. Kh1 {[%clk 0:00:07]}  Nxd4 {[%clk 0:01:10]} 26. cxd4 {[%clk 0:00:08]}  Rec8 {[%clk 0:01:06]} 27. Qe7 {[%clk 0:00:06]}  Qf5 {[%clk 0:00:59]} 28. Rd1 {[%clk 0:00:02]}  Nd5 {[%clk 0:00:59]} 29. Nxd5 {[%clk 0:00:03]}  Qxd5 {[%clk 0:01:00]} 30. Kh2 {[%clk 0:00:02]}  a5 {[%clk 0:00:58]} 31. g3 {[%clk 0:00:02]}  b5 {[%clk 0:00:59]} 32. Bc5 {[%clk 0:00:02]}  a4 {[%clk 0:00:57]} 33. Rb1 {[%clk 0:00:02]}  Rc2 {[%clk 0:00:49]} 34. Kg2 {[%clk 0:00:02]}  Qxa2 {[%clk 0:00:45]} 35. Rf1 {[%clk 0:00:03]}  Qd5 {[%clk 0:00:42]} 36. Qa7 {[%clk 0:00:02]}  R2xc5 {[%clk 0:00:42]} 37. dxc5 {[%clk 0:00:02]}  Qxc5 {[%clk 0:00:43]} 38. Qa6 {[%clk 0:00:02]}  h6 {[%clk 0:00:42]} 39. Rd1 {[%clk 0:00:02]}  Rb8 {[%clk 0:00:41]} 40. Rd7 {[%clk 0:00:01]}  Qg5 {[%clk 0:00:42]} 41. Qc6 {[%clk 0:00:01]}  b4 {[%clk 0:00:40]} 42. Qc7 {[%clk 0:00:01]}  Rf8 {[%clk 0:00:40]} 43. Qb7 {[%clk 0:00:01]}  b3 {[%clk 0:00:40]} 44. Qb4 {[%clk 0:00:01]}  Qf5 {[%clk 0:00:40]} 45. Ra7 {[%clk 0:00:02]}  Qf3+ {[%clk 0:00:39]} 46. Kg1 {[%clk 0:00:00]}  Rd8 {[%clk 0:00:39]} 0-1

[Event "January 9 Late 2024"]
[Site "https://www.chess.com"]
[Date "2024.01.09"]
[Round "7"]
[White "Roberson, Peter T"]
[Black "Blanco Diez, David"]
[Result "1/2-1/2"]
[Board "101"]
[TimeControl "180+1"]
[WhiteFideId "412384"]
[BlackFideId "32032927"]
[WhiteElo "2586"]
[BlackElo "2450"]
[WhiteTeam "ENG"]
[BlackTeam "ESP"]
[WhiteClock "0:00:05"]
[BlackClock "0:00:12"]

1. b3 {[%clk 0:02:59]}  Nf6 {[%clk 0:02:58]} 2. Bb2 {[%clk 0:02:59]}  g6 {[%clk 0:02:58]} 3. Bxf6 {[%clk 0:02:58]}  exf6 {[%clk 0:02:58]} 4. c4 {[%clk 0:02:59]}  Bg7 {[%clk 0:02:57]} 5. Nc3 {[%clk 0:02:59]}  O-O {[%clk 0:02:57]} 6. g3 {[%clk 0:03:00]}  f5 {[%clk 0:02:51]} 7. Bg2 {[%clk 0:03:00]}  Nc6 {[%clk 0:02:49]} 8. e3 {[%clk 0:02:59]}  Re8 {[%clk 0:02:45]} 9. Nge2 {[%clk 0:02:59]}  b6 {[%clk 0:02:42]} 10. O-O {[%clk 0:02:59]}  Bb7 {[%clk 0:02:42]} 11. d4 {[%clk 0:03:00]}  d6 {[%clk 0:02:37]} 12. Nf4 {[%clk 0:02:48]}  Qd7 {[%clk 0:02:21]} 13. Qd2 {[%clk 0:02:47]}  Na5 {[%clk 0:02:19]} 14. Bxb7 {[%clk 0:02:39]}  Nxb7 {[%clk 0:02:19]} 15. h4 {[%clk 0:02:39]}  Nd8 {[%clk 0:02:06]} 16. a4 {[%clk 0:02:22]}  a5 {[%clk 0:01:54]} 17. Ncd5 {[%clk 0:02:20]}  Ne6 {[%clk 0:01:46]} 18. Rad1 {[%clk 0:02:15]}  Rab8 {[%clk 0:01:28]} 19. Kg2 {[%clk 0:02:10]}  c6 {[%clk 0:01:27]} 20. Nc3 {[%clk 0:02:10]}  Nxf4+ {[%clk 0:01:27]} 21. exf4 {[%clk 0:02:06]}  h5 {[%clk 0:01:18]} 22. d5 {[%clk 0:02:05]}  c5 {[%clk 0:01:14]} 23. Nb5 {[%clk 0:01:56]}  Re4 {[%clk 0:01:04]} 24. Rde1 {[%clk 0:01:53]}  Rbe8 {[%clk 0:01:02]} 25. f3 {[%clk 0:01:44]}  R4e7 {[%clk 0:00:56]} 26. Kf2 {[%clk 0:01:39]}  Kf8 {[%clk 0:00:53]} 27. Rxe7 {[%clk 0:01:36]}  Qxe7 {[%clk 0:00:51]} 28. Re1 {[%clk 0:01:37]}  Qxe1+ {[%clk 0:00:49]} 29. Qxe1 {[%clk 0:01:38]}  Rxe1 {[%clk 0:00:50]} 30. Kxe1 {[%clk 0:01:39]}  Ke7 {[%clk 0:00:50]} 31. Kf2 {[%clk 0:01:31]}  Kd7 {[%clk 0:00:46]} 32. Na7 {[%clk 0:01:25]}  Bf6 {[%clk 0:00:42]} 33. Kg2 {[%clk 0:01:22]}  Bg7 {[%clk 0:00:41]} 34. Kh3 {[%clk 0:01:22]}  Bf6 {[%clk 0:00:37]} 35. Nb5 {[%clk 0:01:22]}  Bg7 {[%clk 0:00:36]} 36. Na3 {[%clk 0:01:22]}  Bb2 {[%clk 0:00:29]} 37. Nc2 {[%clk 0:01:22]}  Ke7 {[%clk 0:00:24]} 38. Ne1 {[%clk 0:01:14]}  Bc1 {[%clk 0:00:21]} 39. Nd3 {[%clk 0:01:08]}  Be3 {[%clk 0:00:22]} 40. Kg2 {[%clk 0:01:01]}  Kf6 {[%clk 0:00:22]} 41. Ne1 {[%clk 0:00:59]}  Bd2 {[%clk 0:00:21]} 42. Nc2 {[%clk 0:00:59]}  Bc1 {[%clk 0:00:20]} 43. Kf2 {[%clk 0:00:59]}  Bb2 {[%clk 0:00:19]} 44. Ke2 {[%clk 0:00:58]}  Bc3 {[%clk 0:00:17]} 45. Na3 {[%clk 0:00:58]}  Ke7 {[%clk 0:00:17]} 46. Nb5 {[%clk 0:00:58]}  Bb2 {[%clk 0:00:14]} 47. Kf2 {[%clk 0:00:55]}  Kd7 {[%clk 0:00:14]} 48. Kg2 {[%clk 0:00:55]}  Ke7 {[%clk 0:00:15]} 49. Kh3 {[%clk 0:00:55]}  Kd7 {[%clk 0:00:16]} 50. Na7 {[%clk 0:00:55]}  Ke7 {[%clk 0:00:14]} 51. g4 {[%clk 0:00:36]}  Kd7 {[%clk 0:00:13]} 52. Kg3 {[%clk 0:00:33]}  Ke7 {[%clk 0:00:13]} 53. Kf2 {[%clk 0:00:14]}  Bf6 {[%clk 0:00:12]} 54. Kg3 {[%clk 0:00:05]}  Bb2 {[%clk 0:00:13]} 55. Kh3 {[%clk 0:00:05]}  Bc1 {[%clk 0:00:12]} 56. Kg3 {[%clk 0:00:05]}  Bb2 {[%clk 0:00:12]} 1/2-1/2

[Event "January 9 Late 2024"]
[Site "https://www.chess.com"]
[Date "2024.01.09"]
[Round "7"]
[White "Womacka, Mathias"]
[Black "Koziol, Kamil"]
[Result "1/2-1/2"]
[Board "103"]
[TimeControl "180+1"]
[WhiteFideId "4611390"]
[BlackFideId "1161555"]
[WhiteElo "2581"]
[BlackElo "2447"]
[WhiteTeam "GER"]
[BlackTeam "POL"]
[WhiteClock "0:00:30"]
[BlackClock "0:00:07"]

1. e4 {[%clk 0:03:00]}  c5 {[%clk 0:02:58]} 2. Nf3 {[%clk 0:02:57]}  e6 {[%clk 0:02:58]} 3. d4 {[%clk 0:02:58]}  cxd4 {[%clk 0:02:59]} 4. Nxd4 {[%clk 0:02:57]}  Nf6 {[%clk 0:02:59]} 5. Nc3 {[%clk 0:02:57]}  Nc6 {[%clk 0:03:00]} 6. Ndb5 {[%clk 0:02:56]}  Bb4 {[%clk 0:03:00]} 7. a3 {[%clk 0:02:56]}  Bxc3+ {[%clk 0:03:01]} 8. Nxc3 {[%clk 0:02:56]}  d5 {[%clk 0:03:02]} 9. exd5 {[%clk 0:02:56]}  exd5 {[%clk 0:03:02]} 10. Bd3 {[%clk 0:02:55]}  O-O {[%clk 0:03:02]} 11. O-O {[%clk 0:02:55]}  d4 {[%clk 0:03:03]} 12. Ne2 {[%clk 0:02:54]}  Bg4 {[%clk 0:03:03]} 13. Bg5 {[%clk 0:02:45]}  Re8 {[%clk 0:02:54]} 14. f3 {[%clk 0:02:37]}  Bh5 {[%clk 0:02:51]} 15. Nf4 {[%clk 0:02:36]}  Bg6 {[%clk 0:02:51]} 16. Nxg6 {[%clk 0:02:36]}  hxg6 {[%clk 0:02:52]} 17. Qd2 {[%clk 0:02:33]}  Qb6 {[%clk 0:02:36]} 18. b4 {[%clk 0:02:24]}  Nd5 {[%clk 0:02:30]} 19. f4 {[%clk 0:02:10]}  Ne3 {[%clk 0:02:20]} 20. Rf3 {[%clk 0:02:10]}  Ne7 {[%clk 0:02:18]} 21. Kh1 {[%clk 0:01:47]}  N7d5 {[%clk 0:02:05]} 22. f5 {[%clk 0:01:37]}  gxf5 {[%clk 0:01:54]} 23. Bxf5 {[%clk 0:01:37]}  Nxf5 {[%clk 0:01:52]} 24. Rxf5 {[%clk 0:01:36]}  Ne3 {[%clk 0:01:53]} 25. Rc5 {[%clk 0:01:25]}  Qd6 {[%clk 0:01:36]} 26. Bxe3 {[%clk 0:01:08]}  Rxe3 {[%clk 0:01:35]} 27. Rc4 {[%clk 0:01:02]}  Rd8 {[%clk 0:00:55]} 28. h3 {[%clk 0:01:02]}  Qe5 {[%clk 0:00:54]} 29. Rf1 {[%clk 0:00:58]}  d3 {[%clk 0:00:44]} 30. cxd3 {[%clk 0:00:55]}  Rdxd3 {[%clk 0:00:42]} 31. Rc8+ {[%clk 0:00:51]}  Kh7 {[%clk 0:00:41]} 32. Qf2 {[%clk 0:00:50]}  Qg5 {[%clk 0:00:20]} 33. Qxf7 {[%clk 0:00:43]}  Rxh3+ {[%clk 0:00:20]} 34. Kg1 {[%clk 0:00:39]}  Qe3+ {[%clk 0:00:11]} 35. Qf2 {[%clk 0:00:35]}  Qxf2+ {[%clk 0:00:12]} 36. Rxf2 {[%clk 0:00:35]}  Rhg3 {[%clk 0:00:09]} 37. Rc7 {[%clk 0:00:33]}  Rxa3 {[%clk 0:00:08]} 38. Rxb7 {[%clk 0:00:33]}  Rab3 {[%clk 0:00:08]} 39. Rxa7 {[%clk 0:00:32]}  Rxb4 {[%clk 0:00:08]} 40. Ra1 {[%clk 0:00:30]}  Rbb3 {[%clk 0:00:07]} 1/2-1/2

[Event "January 9 Late 2024"]
[Site "https://www.chess.com"]
[Date "2024.01.09"]
[Round "7"]
[White "Joie, Sebastien"]
[Black "Ozdemir, Serhan Berat"]
[Result "1-0"]
[Board "104"]
[TimeControl "180+1"]
[WhiteFideId "650420"]
[BlackFideId "6374611"]
[WhiteElo "2445"]
[BlackElo "2580"]
[WhiteTeam "FRA"]
[BlackTeam "TUR"]
[WhiteClock "0:00:05"]
[BlackClock "0:00:02"]

1. d4 {[%clk 0:02:26]}  Nf6 {[%clk 0:02:44]} 2. c4 {[%clk 0:02:25]}  g6 {[%clk 0:02:41]} 3. Nc3 {[%clk 0:02:25]}  Bg7 {[%clk 0:02:40]} 4. e4 {[%clk 0:02:25]}  d6 {[%clk 0:02:39]} 5. f4 {[%clk 0:02:26]}  O-O {[%clk 0:02:38]} 6. Nf3 {[%clk 0:02:26]}  c5 {[%clk 0:02:38]} 7. d5 {[%clk 0:02:27]}  e6 {[%clk 0:02:39]} 8. Be2 {[%clk 0:02:28]}  exd5 {[%clk 0:02:37]} 9. cxd5 {[%clk 0:02:28]}  Re8 {[%clk 0:02:37]} 10. e5 {[%clk 0:02:28]}  dxe5 {[%clk 0:02:38]} 11. fxe5 {[%clk 0:02:29]}  Ng4 {[%clk 0:02:36]} 12. e6 {[%clk 0:02:29]}  fxe6 {[%clk 0:02:36]} 13. d6 {[%clk 0:02:30]}  Nc6 {[%clk 0:02:17]} 14. O-O {[%clk 0:02:30]}  Qb6 {[%clk 0:02:04]} 15. Ne4 {[%clk 0:02:15]}  Bd7 {[%clk 0:01:43]} 16. Kh1 {[%clk 0:01:30]}  Rf8 {[%clk 0:01:35]} 17. h3 {[%clk 0:00:54]}  Nge5 {[%clk 0:01:31]} 18. Be3 {[%clk 0:00:52]}  Nxf3 {[%clk 0:01:28]} 19. Bxc5 {[%clk 0:00:52]}  Qxb2 {[%clk 0:01:27]} 20. Rb1 {[%clk 0:00:52]}  Qxa2 {[%clk 0:00:11]} 21. Bxf3 {[%clk 0:00:52]}  b6 {[%clk 0:00:11]} 22. Bg1 {[%clk 0:00:52]}  Rad8 {[%clk 0:00:09]} 23. Rc1 {[%clk 0:00:21]}  Ne5 {[%clk 0:00:08]} 24. Rc7 {[%clk 0:00:18]}  Nxf3 {[%clk 0:00:06]} 25. Rxf3 {[%clk 0:00:18]}  Rxf3 {[%clk 0:00:03]} 26. Qxf3 {[%clk 0:00:19]}  Qa4 {[%clk 0:00:02]} 27. Nf6+ {[%clk 0:00:12]}  Bxf6 {[%clk 0:00:02]} 28. Qxf6 {[%clk 0:00:12]}  Rf8 {[%clk 0:00:02]} 29. Qe7 {[%clk 0:00:07]}  Rf7 {[%clk 0:00:01]} 30. Qd8+ {[%clk 0:00:06]}  Kg7 {[%clk 0:00:01]} 31. Rb7 {[%clk 0:00:02]}  Qb5 {[%clk 0:00:02]} 32. Rc7 {[%clk 0:00:03]}  e5 {[%clk 0:00:02]} 33. Qb8 {[%clk 0:00:02]}  a5 {[%clk 0:00:03]} 34. Qd8 {[%clk 0:00:03]}  a4 {[%clk 0:00:04]} 35. Rb7 {[%clk 0:00:03]}  a3 {[%clk 0:00:04]} 36. Rxb6 {[%clk 0:00:03]}  Qd5 {[%clk 0:00:05]} 37. Rb7 {[%clk 0:00:03]}  Qe6 {[%clk 0:00:05]} 38. Ra7 {[%clk 0:00:02]}  a2 {[%clk 0:00:06]} 39. Qa8 {[%clk 0:00:02]}  Rf1 {[%clk 0:00:05]} 40. Rxa2 {[%clk 0:00:03]}  Qd5 {[%clk 0:00:03]} 41. Qxd5 {[%clk 0:00:02]}  e4 {[%clk 0:00:02]} 42. Qe5+ {[%clk 0:00:03]}  Kh6 {[%clk 0:00:02]} 43. Qxe4 {[%clk 0:00:03]}  Bf5 {[%clk 0:00:02]} 44. Qe3+ {[%clk 0:00:04]}  Kg7 {[%clk 0:00:02]} 45. Ra7+ {[%clk 0:00:04]}  Kg8 {[%clk 0:00:02]} 46. Qe8# {[%clk 0:00:05]} 1-0

[Event "January 9 Late 2024"]
[Site "https://www.chess.com"]
[Date "2024.01.09"]
[Round "7"]
[White "Storn, Justin"]
[Black "Erzhanov, Arman"]
[Result "1-0"]
[Board "107"]
[TimeControl "180+1"]
[WhiteFideId "30922720"]
[BlackFideId "4138821"]
[WhiteElo "2432"]
[BlackElo "2555"]
[WhiteTeam "USA"]
[BlackTeam "KAZ"]
[WhiteClock "0:00:04"]
[BlackClock "0:00:26"]

1. g3 {[%clk 0:03:00]}  c5 {[%clk 0:02:59]} 2. Bg2 {[%clk 0:03:00]}  Nc6 {[%clk 0:02:59]} 3. c4 {[%clk 0:02:57]}  g6 {[%clk 0:03:00]} 4. Nc3 {[%clk 0:02:57]}  Bg7 {[%clk 0:03:00]} 5. e3 {[%clk 0:02:52]}  Nh6 {[%clk 0:02:59]} 6. Nge2 {[%clk 0:02:50]}  Nf5 {[%clk 0:02:59]} 7. O-O {[%clk 0:02:50]}  O-O {[%clk 0:02:59]} 8. a3 {[%clk 0:02:49]}  e6 {[%clk 0:02:52]} 9. b4 {[%clk 0:02:44]}  Nxb4 {[%clk 0:02:40]} 10. axb4 {[%clk 0:02:45]}  cxb4 {[%clk 0:02:40]} 11. d4 {[%clk 0:02:33]}  bxc3 {[%clk 0:02:40]} 12. Ba3 {[%clk 0:02:32]}  Re8 {[%clk 0:02:34]} 13. Nxc3 {[%clk 0:02:24]}  Bf8 {[%clk 0:02:34]} 14. Bxf8 {[%clk 0:02:07]}  Rxf8 {[%clk 0:02:33]} 15. e4 {[%clk 0:02:02]}  Ne7 {[%clk 0:02:30]} 16. d5 {[%clk 0:01:46]}  d6 {[%clk 0:02:28]} 17. Nb5 {[%clk 0:01:41]}  exd5 {[%clk 0:02:25]} 18. exd5 {[%clk 0:01:41]}  a6 {[%clk 0:02:22]} 19. Qf3 {[%clk 0:01:21]}  Rb8 {[%clk 0:02:19]} 20. Nd4 {[%clk 0:01:17]}  Nf5 {[%clk 0:02:18]} 21. Ne2 {[%clk 0:01:03]}  Re8 {[%clk 0:02:15]} 22. Rfe1 {[%clk 0:00:50]}  Bd7 {[%clk 0:02:14]} 23. Bh3 {[%clk 0:00:39]}  Re5 {[%clk 0:01:50]} 24. Qc3 {[%clk 0:00:22]}  Qe7 {[%clk 0:01:39]} 25. Nf4 {[%clk 0:00:17]}  Re8 {[%clk 0:01:36]} 26. Nd3 {[%clk 0:00:14]}  Re2 {[%clk 0:01:32]} 27. Bxf5 {[%clk 0:00:12]}  Bxf5 {[%clk 0:01:31]} 28. Rxe2 {[%clk 0:00:12]}  Qxe2 {[%clk 0:01:31]} 29. Re1 {[%clk 0:00:12]}  Bxd3 {[%clk 0:01:10]} 30. Rxe2 {[%clk 0:00:12]}  Bxe2 {[%clk 0:01:10]} 31. f4 {[%clk 0:00:11]}  Rc8 {[%clk 0:01:08]} 32. Qf6 {[%clk 0:00:09]}  Bxc4 {[%clk 0:01:01]} 33. Qxd6 {[%clk 0:00:09]}  Bb5 {[%clk 0:00:51]} 34. Qe7 {[%clk 0:00:08]}  Re8 {[%clk 0:00:49]} 35. Qxb7 {[%clk 0:00:08]}  Rd8 {[%clk 0:00:49]} 36. Kf2 {[%clk 0:00:06]}  Kf8 {[%clk 0:00:49]} 37. Ke3 {[%clk 0:00:07]}  Rd7 {[%clk 0:00:50]} 38. Qa8+ {[%clk 0:00:06]}  Ke7 {[%clk 0:00:50]} 39. Kd4 {[%clk 0:00:07]}  h5 {[%clk 0:00:50]} 40. Qb8 {[%clk 0:00:06]}  Rd8 {[%clk 0:00:49]} 41. Qe5+ {[%clk 0:00:07]}  Kf8 {[%clk 0:00:49]} 42. d6 {[%clk 0:00:06]}  Kg8 {[%clk 0:00:48]} 43. Qe7 {[%clk 0:00:06]}  Rd7 {[%clk 0:00:46]} 44. Qf6 {[%clk 0:00:06]}  Kh7 {[%clk 0:00:43]} 45. Kc5 {[%clk 0:00:07]}  Kg8 {[%clk 0:00:43]} 46. f5 {[%clk 0:00:07]}  Kh7 {[%clk 0:00:39]} 47. fxg6+ {[%clk 0:00:06]}  fxg6 {[%clk 0:00:27]} 48. h3 {[%clk 0:00:05]}  Rb7 {[%clk 0:00:27]} 49. g4 {[%clk 0:00:04]}  hxg4 {[%clk 0:00:28]} 50. hxg4 {[%clk 0:00:04]}  Rd7 {[%clk 0:00:28]} 51. g5 {[%clk 0:00:05]}  Rb7 {[%clk 0:00:29]} 52. Qf4 {[%clk 0:00:04]}  Rd7 {[%clk 0:00:29]} 53. Qh4+ {[%clk 0:00:05]}  Kg7 {[%clk 0:00:29]} 54. Qh6+ {[%clk 0:00:05]}  Kf7 {[%clk 0:00:29]} 55. Qh7+ {[%clk 0:00:05]}  Ke6 {[%clk 0:00:29]} 56. Qxg6+ {[%clk 0:00:06]}  Ke5 {[%clk 0:00:30]} 57. Qf6+ {[%clk 0:00:06]}  Ke4 {[%clk 0:00:30]} 58. Qe6+ {[%clk 0:00:06]}  Kf4 {[%clk 0:00:30]} 59. g6 {[%clk 0:00:07]}  Kg5 {[%clk 0:00:29]} 60. Qf7 {[%clk 0:00:03]}  Kh6 {[%clk 0:00:27]} 61. Qf8+ {[%clk 0:00:04]}  Kxg6 {[%clk 0:00:27]} 62. Qe8+ {[%clk 0:00:03]}  Kf6 {[%clk 0:00:27]} 63. Qe4 {[%clk 0:00:03]}  Kf7 {[%clk 0:00:26]} 64. Qf4+ {[%clk 0:00:04]}  Ke8 {[%clk 0:00:26]} 65. Qe5+ {[%clk 0:00:04]}  Kd8 {[%clk 0:00:26]} 66. Qh8# {[%clk 0:00:04]} 1-0